Cogmind - Beta 15 @@@ ROGUE MODE // 2025.06.08 @ 01:02:24 Player: nado Result: Destroyed by Y-54 Guardian with Gatling Laser Performance ------------- Evolutions (4) 2000 Regions Visited (5) 1000 Robots Destroyed (9) 45 Value Destroyed (443) 443 Prototype IDs (6) 120 Alien Tech Used (0) 0 Bonus (800) 800 TOTAL SCORE: 4408 Bonus ------- Registered with UFD 300 Met Optimus in HQ 500 Cogmind --------- Core Integrity 0/850 Matter 233/300 Energy 61/100 System Corruption 6% Temperature Cool (12) Movement Treading (160) Location -6/Extension Parts ------- > --- POWER (2) -------- (None) > --- PROPULSION (4) --- Improved Treads > --- UTILITY (6) ------ (None) > --- WEAPON (3) ------- (None) > --- INVENTORY (5) ---- Scrap Suit Improved Medium Armor Plating Improved Medium Armor Plating Heavy Mace Peak State ------------ > --- POWER ------------ Improved Ion Engine Improved Deuterium Engine > --- PROPULSION ------- Light Treads Light Treads Improved Treads Armored Leg > --- UTILITY ---------- Scrap Suit Huge Storage Unit Seismic Detector Improved Medium Armor Plating Shield Generator > --- WEAPON ----------- Pulse Rifle Particle Cannon > --- INVENTORY -------- Scrap Suit Large Storage Unit Improved Medium Armor Plating Improved Medium Armor Plating Tractor Beam Field Laser Heavy Missile Launcher Heavy Hammer Heavy Mace Vortex Trap [Rating: 39] Favorites ----------- Power Improved Deuterium Engine Engine Improved Deuterium Engine Propulsion Light Treads Treads Light Treads Leg Aluminum Leg Wheel Wheel Utility Improved Medium Armor Plating Device Heat Sink Storage Small Storage Unit Protection Improved Medium Armor Plating Weapon Pulse Rifle Energy Gun Pulse Rifle Energy Cannon Particle Cannon Ballistic Gun Light Assault Rifle Launcher Heavy Missile Launcher Build | -11 -10 -10 -8 -6 -6 ------- Run | Yrd Mat Sub Scr Fac Ext Slots Evolved 8 | . . . . 8 . Power 1 | . . . . 1 . Propulsion 2 | . . . . 2 . Utility 4 | . . . . 4 . Weapon 1 | . . . . 1 . Parts Attached 26 | . . 1 8 14 3 Power 3 | . . . 1 2 . Engine 3 | . . . 1 2 . Core . | . . . . . . Reactor . | . . . . . . Propulsion 7 | . . . 2 4 1 Treads 4 | . . . 2 1 1 Leg 2 | . . . . 2 . Wheel 1 | . . . . 1 . Hover . | . . . . . . Flight . | . . . . . . Utility 10 | . . 1 3 6 . Device 6 | . . 1 . 5 . Storage 2 | . . . 1 1 . Processor . | . . . . . . Hackware . | . . . . . . Protection 2 | . . . 2 . . Artifact . | . . . . . . Weapon 6 | . . . 2 2 2 Energy Gun 4 | . . . 1 2 1 Energy Cannon 1 | . . . 1 . . Ballistic Gun . | . . . . . . Ballistic Cannon . | . . . . . . Launcher 1 | . . . . . 1 Special Weapon . | . . . . . . Impact Weapon . | . . . . . . Slashing Weapon . | . . . . . . Piercing Weapon . | . . . . . . Special Melee Weapon . | . . . . . . Unidentified Prototypes . | . . . . . . Parts Lost 21 | . . . . 12 9 Power 3 | . . . . 2 1 Propulsion 6 | . . . . 4 2 Utility 6 | . . . . 4 2 Weapon 6 | . . . . 2 4 Highest Loss Streak 9 | . . . . 6 9 To Critical Strikes . | . . . . . . Average Backups 8 | 6 6 6 8 8 8 Power 1 | 1 1 1 1 . . Propulsion 1 | 4 4 4 1 . . Utility 3 | . . . 3 4 4 Weapon 2 | 1 1 1 1 3 3 Tool/Special . | . . . . . . Unused Backups 18 | 6 . . 5 . 7 Power 3 | 1 . . 2 . . Propulsion 5 | 2 . . 2 . 1 Utility 5 | 1 . . . . 4 Weapon 5 | 2 . . 1 . 2 Tool/Special . | . . . . . . Average Slot Usage (%) 90 | . 85 92 98 61 33 Engine 11 | . 14 14 12 7 4 Treads 19 | . . . 23 10 . Leg 6 | . 28 28 4 5 4 Device 4 | . . 6 2 14 10 Storage 12 | . 14 14 14 6 4 Protection 9 | . . . 11 3 . Energy Gun 12 | . 14 14 14 6 3 Energy Cannon 8 | . . . 10 3 . Ballistic Gun 3 | . 14 14 3 . . Peak Build Rating 39 | 6 6 7 20 39 27 Average Rating 18 | 6 6 6 16 30 18 On Entrance 11 | 6 6 6 7 20 26 Naked Turns 24 | . . . . . 24 Heaviest Build 118 | 12 12 13 44 118 97 Greatest Support 63 | 20 20 20 43 63 23 Greatest Overweight (x) 29 | . . . 1 29 9 Average Overweight (x) . | . . . . 3 6 Largest Inventory Capacity 25 | 8 8 8 15 25 25 Average Capacity 13 | 8 8 8 11 23 19 Most Carried 13 | 6 6 7 13 12 12 Average Carried 9 | 6 6 6 9 10 9 Final Capacity 25 | 8 8 8 15 25 5 Final Carried 13 | 6 6 7 13 12 5 Class Distribution -------------------- 94% | Mutant 3% | Scavenger-Mutant Dominant Class ---------------- Mutant | -10/Materials Mutant | -10/Subcaves Mutant | -8/Scraptown Mutant | -6/Factory Scavenger-Mutant | -6/Extension Resources | -11 -10 -10 -8 -6 -6 ----------- Run | Yrd Mat Sub Scr Fac Ext Matter Collected 472 | 188 . 31 70 183 . Remotely . | . . . . . . Salvage Created 377 | . . 89 . 288 . Parts 11 | . . 6 . 5 . Haulers Intercepted . | . . . . . . Recyclers Shooed 2 | . . . . 2 . Parts Field Recycled . | . . . . . . Retrieved Matter . | . . . . . . Parts Self-Destructed 13 | . . 13 . . . Prevented . | . . . . . . Kills | -11 -10 -10 -8 -6 -6 ------- Run | Yrd Mat Sub Scr Fac Ext Combat Hostiles Destroyed 8 | . . 2 . 6 . Guns 5 | . . 2 . 3 . Cannons 1 | . . . . 1 . Classes Destroyed 3 | . . 1 . 2 . Watcher 1 | . . . . 1 . Grunt 7 | . . 2 . 5 . Programmer 1 | . . . . 1 . Best Kill Streak 2 | . . 2 . 2 . Combat Bots Only 2 | . . 2 . 2 . Max Kills in Single Turn 1 | . . 1 . 1 . Gunslinging . | . . . . . . Exploded . | . . . . . . Melee . | . . . . . . Uniques/NPCs Destroyed . | . . . . . . Combat | -11 -10 -10 -8 -6 -6 -------- Run | Yrd Mat Sub Scr Fac Ext Hostile Shots Fired 379 | . . 7 . 171 201 Missed 132 | . . 4 . 46 82 Hits 247 | . . 3 . 125 119 Projectile 247 | . . 3 . 125 119 Critical Strikes 3 | . . . . 3 . Damage Taken 3092 | . . 46 . 2161 885 Core 905 | . . 46 . 421 438 Absorbed by Shields 115 | . . . . 115 . Core Remaining (%) 90 | 100 . . 81 . . Volleys Fired 72 | . 1 8 . 57 6 Largest 3 | . 1 2 . 3 1 Hottest 191 | . 20 60 . 191 75 Shots Fired 105 | . 1 15 . 83 6 Gun 78 | . 1 15 . 58 4 Cannon 25 | . . . . 25 . Launcher 2 | . . . . . 2 Special . | . . . . . . Kinetic 9 | . 1 8 . . . Thermal 91 | . . 7 . 82 2 Explosive 2 | . . . . . 2 Electromagnetic 3 | . . . . 1 2 Robot Hit Streak 14 | . 1 5 . 14 7 Robot Miss Streak 4 | . . 4 . 2 1 Penetration Max . | . . . . . . Secondary Targets . | . . . . . . Shots Hit Robots 80 | . 1 9 . 65 5 Core Hits 39 | . . 4 . 22 13 Critical Kills 1 | . . 1 . . . Critical Parts Destroyed . | . . . . . . Critical Strikes 3 | . . 1 . 2 . Burn 2 | . . . . 2 . Destroy 1 | . . 1 . . . Melee Attacks . | . . . . . . Impact . | . . . . . . Slashing . | . . . . . . Piercing . | . . . . . . Sneak Attacks . | . . . . . . Combat Hostiles . | . . . . . . Follow-up Attacks . | . . . . . . Damage Inflicted 1608 | . 10 65 . 1251 282 Guns 994 | . 10 65 . 858 61 Cannons 349 | . . . . 349 . Explosions 221 | . . . . . 221 Melee . | . . . . . . Ramming 44 | . . . . 44 . Kinetic 53 | . 10 43 . . . Thermal 1248 | . . 22 . 1184 42 Explosive 221 | . . . . . 221 Electromagnetic 42 | . . . . 23 19 Impact . | . . . . . . Slashing . | . . . . . . Piercing . | . . . . . . Highest Corruption 6 | . . . . 6 6 Average Corruption 3 | . . . . 3 6 Corruption Purged . | . . . . . . Corruption Blocked . | . . . . . . Effects 19 | . . . . 15 4 Message Errors 2 | . . . . 2 . Matter Fused 11 | . . . . 8 3 Heat Flow Errors 2 | . . . . 1 1 Parts Fused 1 | . . . . 1 . Data Loss (minor) 1 | . . . . 1 . Data Loss (major) 2 | . . . . 2 . Overload Shots . | . . . . . . Overflow Damage . | . . . . . . Projectiles . | . . . . . . Explosions . | . . . . . . Melee . | . . . . . . Knockbacks . | . . . . . . Impact . | . . . . . . Kinetic . | . . . . . . Secondary . | . . . . . . Self-Inflicted Damage . | . . . . . . Shots . | . . . . . . Rammed 6 | . . . . 6 . Targets Rammed 16 | . . . . 16 . Kicked 10 | . . . . 10 . Crushed . | . . . . . . Highest Temperature 560 | . . . . 560 151 Average Temperature 269 | . . . . 280 45 Received Heat Transfer 939 | . . 27 . 660 252 Effects 27 | . . . . 27 . Shutdowns 6 | . . . . 6 . Energy Bleed 4 | . . . . 4 . Interference 2 | . . . . 2 . Matter Decay 3 | . . . . 3 . Short Circuit 4 | . . . . 4 . Damage (major) 7 | . . . . 7 . Damage (core) 1 | . . . . 1 . Siege Activations . | . . . . . . Martial Activations . | . . . . . . Shielding Activations . | . . . . . . Robots Disrupted . | . . . . . . Combat Hostiles . | . . . . . . Robots Corrupted . | . . . . . . Combat Hostiles . | . . . . . . Parts Fried . | . . . . . . Impact Corruptions . | . . . . . . Robots Melted 2 | . . . . 2 . Combat Hostiles 2 | . . . . 2 . Parts Melted 3 | . . . . 3 . Heat Transferred 2640 | . . 50 . 2516 74 Parts Sabotaged . | . . . . . . Parts Stolen . | . . . . . . Parts Stripped . | . . . . . . Power Chain Reactions . | . . . . . . Alert | -11 -10 -10 -8 -6 -6 ------- Run | Yrd Mat Sub Scr Fac Ext Maximum Alert Level . | . . . . . . Low Security (%) 100 | 100 100 . . 100 100 Level 1 . | . . . . . . Level 2 . | . . . . . . Level 3 . | . . . . . . Level 4 . | . . . . . . Level 5 . | . . . . . . High Security . | . . . . . . Max Security . | . . . . . . Peak Influence 73 | . . . . 73 14 Initial . | . . . . . . Average 6 | . . . . 8 . Influence Increases 330 | . . 50 . 264 16 Destroy 0b10 Robot/C 160 | . . 40 . 120 . Destroy 0b10 Robot/NC 5 | . . . . 5 . Destroy Leader 42 | . . 10 . 32 . Disable Machine 15 | . . . . 15 . Destroy Structure 18 | . . . . 2 16 Lose Combat Pursuer 90 | . . . . 90 . Influence Decreases 330 | . . 50 . 264 16 Time Decay 239 | . . 50 . 179 10 Lost Part 91 | . . . . 85 6 Squads Dispatched 3 | . 1 . . 2 . Investigation . | . . . . . . Extermination 1 | . . . . 1 . Reinforcement 2 | . 1 . . 1 . Assault . | . . . . . . Garrison . | . . . . . . Intercept . | . . . . . . Searches Triggered . | . . . . . . Construction Impeded . | . . . . . . Haulers Reinforced . | . . . . . . Active Scanning Responses . | . . . . . . Cargo Convoy Interrupts . | . . . . . . Stealth | -11 -10 -10 -8 -6 -6 --------- Run | Yrd Mat Sub Scr Fac Ext Distress Signals 1 | . . . . . 1 Communications Jammed . | . . . . . . Distress Signals . | . . . . . . Times Spotted 21 | . . 2 . 15 4 Peak Tracking Total 4 | . 1 2 . 4 3 Tactical Retreats 6 | . . . . 6 . Traps | -11 -10 -10 -8 -6 -6 ------- Run | Yrd Mat Sub Scr Fac Ext Traps Triggered 2 | . . . . 1 1 Indirectly . | . . . . . . Trap Hack Attempts . | . . . . . . Triggered . | . . . . . . Disarmed . | . . . . . . Reprogrammed . | . . . . . . Reused . | . . . . . . Traps Extracted . | . . . . . . Installed . | . . . . . . Triggered . | . . . . . . Most Traps Carried 1 | . . . 1 1 1 Machines | -11 -10 -10 -8 -6 -6 ---------- Run | Yrd Mat Sub Scr Fac Ext Machines Disabled 1 | . . . . 1 . Max in Single Turn 1 | . . . . 1 . Machines Repaired . | . . . . . . Machines Dismantled . | . . . . . . Machines Sabotaged . | . . . . . . Overloaded Fab Kills . | . . . . . . Hacking | -11 -10 -10 -8 -6 -6 --------- Run | Yrd Mat Sub Scr Fac Ext Machines Accessed 8 | . . . 8 . . Terminals . | . . . . . . Fabricators . | . . . . . . Repair Stations . | . . . . . . Recycling Units . | . . . . . . Scanalyzers . | . . . . . . Garrison Access . | . . . . . . Total Hacks 38 | . . . 38 . . Successful 38 | . . . 38 . . Failed . | . . . . . . Catastrophic . | . . . . . . Database Lockouts . | . . . . . . Manual . | . . . . . . Terminals . | . . . . . . Fabricators . | . . . . . . Repair Stations . | . . . . . . Recycling Units . | . . . . . . Scanalyzers . | . . . . . . Garrison Access . | . . . . . . Terminal Hacks 38 | . . . 38 . . Record 31 | . . . 31 . . Robot Analysis 6 | . . . 6 . . Proto ID Catalog 1 | . . . 1 . . Fabricator Hacks . | . . . . . . Repair Station Hacks . | . . . . . . Recycling Unit Hacks . | . . . . . . Scanalyzer . | . . . . . . Garrison Access Hacks . | . . . . . . Unauthorized Hacks . | . . . . . . Terminals . | . . . . . . Fabricators . | . . . . . . Repair Stations . | . . . . . . Recycling Units . | . . . . . . Scanalyzers . | . . . . . . Garrison Access . | . . . . . . Data Cores Recovered . | . . . . . . Used . | . . . . . . Hacking Detections . | . . . . . . Full Trace Events . | . . . . . . Feedback Events . | . . . . . . Feedback Blocked . | . . . . . . Robot Schematics Acquired . | . . . . . . Robots Built . | . . . . . . Authchips . | . . . . . . Time . | . . . . . . Total Robot Build Rating . | . . . . . . Part Schematics Acquired . | . . . . . . Parts Built . | . . . . . . Authchips . | . . . . . . Time . | . . . . . . Total Part Build Rating . | . . . . . . Parts Repaired . | . . . . . . Time . | . . . . . . Parts Recycled . | . . . . . . Recycled Matter . | . . . . . . Retrieved Matter . | . . . . . . Retrieved Components . | . . . . . . Parts Scanalyzed . | . . . . . . Part Schematics Acquired . | . . . . . . Parts Damaged . | . . . . . . Bothacking | -11 -10 -10 -8 -6 -6 ------------ Run | Yrd Mat Sub Scr Fac Ext Used RIF Installer . | . . . . . . Robots Hacked . | . . . . . . Non-combat . | . . . . . . Combat . | . . . . . . Robot Hacks Applied . | . . . . . . Relay Couplers Released . | . . . . . . Fabnet Peak Effective % . | . . . . . . Robots Rewired 4 | . . . . . 4 Allies Hacked . | . . . . . . Hacks Repelled . | . . . . . . Allies | -11 -10 -10 -8 -6 -6 -------- Run | Yrd Mat Sub Scr Fac Ext Total Allies 4 | . . . . . 4 Largest Group 2 | . . . . . 2 Highest-Rated Group 56 | . . . . . 56 Highest-Rated Ally 31 | . . . . . 31 Total Orders . | . . . . . . Ally Attacks 6 | . . . . . 6 Total Damage 137 | . . . . . 137 Kills . | . . . . . . Allies Corrupted . | . . . . . . Allies Melted . | . . . . . . Intel | -11 -10 -10 -8 -6 -6 ------- Run | Yrd Mat Sub Scr Fac Ext Active Infowar (turns) 274 | . . . . 274 . Seismic 274 | . . . . 274 . Robot Analysis Total 6 | . . . 6 . . Derelict Logs Recovered . | . . . . . . Drone Launches . | . . . . . . Drone Recoveries . | . . . . . . Exploration | -11 -10 -10 -8 -6 -6 ------------- Run | Yrd Mat Sub Scr Fac Ext Turns Passed 5646 | 36 87 221 4273 909 120 Spaces Moved 2877 | 31 41 142 2368 246 49 Core 17 | . . . . 5 12 Treads 1993 | . . . 1806 185 2 Legs 782 | 31 41 142 562 6 . Wheels 85 | . . . . 50 35 Hover . | . . . . . . Flight . | . . . . . . Fastest Speed 50 | 120 120 120 120 160 50 Average Speed 181 | 120 120 120 179 261 172 Slowest Speed 1500 | 120 120 120 240 1500 215 Overloaded Moves . | . . . . . . Propulsion Burnouts . | . . . . . . Robots Hopped . | . . . . . . Potential Cave-ins . | . . . . . . Cave-ins Triggered . | . . . . . . Exploration Rate (%) 22 | 3 8 6 95 7 13 Regions Visited 5 Branch Regions 3 Pre-discovered Areas 2 | . . . 2 . . Known Exits Taken . | . . . . . . Unknown Exits Taken 5 | 1 1 1 1 1 . Scrap Searched 3 | . . . 3 . . Spaces Dug . | . . . . . . Terrain Destroyed 15 | . . . . . 15 Melee . | . . . . . . Projectile . | . . . . . . AOE 15 | . . . . . 15 Terrain Rammed . | . . . . . . Walls Destroyed . | . . . . . . Machines Disabled . | . . . . . . Actions | -11 -10 -10 -8 -6 -6 --------- Run | Yrd Mat Sub Scr Fac Ext Total 3116 | 30 78 178 2400 352 78 Wait 81 | . 37 27 . 16 1 Move 2872 | 30 40 141 2367 245 49 Hop . | . . . . . . Pick Up 14 | . . 1 10 3 . Fast Attach 16 | . . 1 5 8 2 Attach 8 | . . . 1 5 2 Detach 1 | . . . . 1 . Swap 3 | . . . 2 1 . Drop 14 | . . . 13 . 1 Fire 72 | . 1 8 . 57 6 Melee . | . . . . . . Ram 2 | . . . . 2 . Kick 10 | . . . . 10 . Crush 4 | . . . . 4 . Escape Stasis . | . . . . . . Rewire 19 | . . . 2 . 17 Trap . | . . . . . . Miscellaneous . | . . . . . . Route ------- -11/Scrapyard -10/Materials -10/Subcaves -8/Scraptown (discovered 2 exits: *Fac x2) -6/Factory -6/Extension History --------- Turn | Location | Event 1 | -11/Scrapyard | Discovered new exit (range 3) 37 | -11/Scrapyard | Entered Materials 113 | -10/Materials | Discovered new exit (range 5) 124 | -10/Materials | Entered Subcaves 125 | -10/Subcaves | Approached by a straggling Scientist 310 | -10/Subcaves | Scientist uncovered a shortcut to Scraptown 311 | -10/Subcaves | Build established: Mutant 345 | -10/Subcaves | Entered Scraptown 809 | -8/Scraptown | Visited CPS Storage 839 | -8/Scraptown | Visited Red Mages 1295 | -8/Scraptown | Discovered new exit (range 5) 1515 | -8/Scraptown | Visited The Evicted 1563 | -8/Scraptown | Visited Cave Peace 1661 | -8/Scraptown | Visited SPCMW 1798 | -8/Scraptown | Visited Spacefarers 1902 | -8/Scraptown | Visited Cyclists 1979 | -8/Scraptown | Visited UFD Registry 1979 | -8/Scraptown | Registered with UFD as "Deathcycle" 2014 | -8/Scraptown | Entered Cyclist Reading Room 2021 | -8/Scraptown | Learned location of Zion (-7) 2147 | -8/Scraptown | Visited Junk Cannon Lab 2248 | -8/Scraptown | Visited Supply Room 2302 | -8/Scraptown | Visited Scrapoid Pod Storage 2406 | -8/Scraptown | Visited Analyses Database 2921 | -8/Scraptown | Visited LU-1G1's Boring Crew 3315 | -8/Scraptown | Visited Scrap Suit Storage 3353 | -8/Scraptown | Found Scrap Suit 3361 | -8/Scraptown | Found Scrap Suit 3410 | -8/Scraptown | Visited Observation Area 3564 | -8/Scraptown | Discovered new exit (range 3) 3782 | -8/Scraptown | Visited Scrapoid Research Area 3878 | -8/Scraptown | Visited Science Guys 3996 | -8/Scraptown | Visited A0-MCA Data Center 4011 | -8/Scraptown | Given a C+ rating by A0-MCA 4455 | -8/Scraptown | Met Optimus 4455 | -8/Scraptown | Accepted into 0bPrime 4618 | -8/Scraptown | Entered Factory 4618 | -6/Factory | Evolved 8 slots: Power x1, Propulsion x2, Utility x4, Weapon x1 4992 | -6/Factory | Lost 3 parts (1p1n1u) 5255 | -6/Factory | Lost 6 parts (1p2n1u2w) 5480 | -6/Factory | Discovered new exit (range 11) 5527 | -6/Factory | Entered Extension 5590 | -6/Extension | Core integrity fell below 50% 5624 | -6/Extension | Core integrity fell below 20% 5647 | -6/Extension | Destroyed by Y-54 Guardian with Gatling Laser Last Messages --------------- 05633_ MX-PWV(g) destroyed. 05634_ U-05 Engineer lays Concrete. 05634_ Attempting to rewire MP-8OR(g). 05635_ U-05 Engineer lays Concrete. 05635_ Attempting to rewire MP-8OR(g). 05636_ U-05 Engineer lays Concrete. 05636_ Attempting to rewire MP-8OR(g). 05636_ MP-8OR(g) rewired. 05637_ U-05 Engineer lays Concrete. 05638_ MP-8OR(g) destroyed. 05638_ Acquired Imp. Treads. 05639_ U-05 Engineer builds a Wall. 05641_ Acquired Beamcaster. 05643_ U-05 Engineer lays Concrete. 05644_ R-10 Processor collects Wheel. 05644_ U-05 Engineer lays Concrete. 05644_ Beamcaster destroyed. 05645_ U-05 Engineer builds a Wall. 05646_ W-25 Informer sends out distress signal. [Achievement: I Think I Know What's Going On] Map ----- +----------------------------------------------------+ | | | | | | | | | | | | | | | | | | | | | | | | | | | | | | | | | | | | | ????????????????????????????????? | | ????????????????????????????????? | | ????????????????????????????????? | | ????????????????????????????????? | | ????????????????????????????????? | | ?????########???????????????????? | | ?????# #???????????????????? | | ????##[ @ = ###?????????????????? | | ????# !=* #?????????????????? | | ????# %% #####+###??????????? | | ????# %/ Y* #?????????? | | ????## Y #?????????? | | ?????## ## #?????????? | | ????## % w ????????? | | ????# [ #????????? | | ????# #????????? | | ????## ?????????? | | ?????#!! ############?????????? | | ?????#R #????????????????????? | | ?????#&^^^ #????????????????????? | | ?????#/ #????????????????????? | | ?????# #????????????????????? | | ?????# #????????????????????? | | ?????# #????????????????????? | | ?????# #????????????????????? | | ?????# #????????????????????? | | ?????# #????????????????????? | | ?????# #????????????????????? | | ?????# #????????????????????? | | ?????# #????????????????????? | | ?????# #????????????????????? | | ?????# #????????????????????? | +----------------------------------------------------+ Best States ------------- Heat Dissipation 56 Energy Generation 23 Energy Capacity 455 Matter Stores 300 Matter Capacity 300 Sight Range 16 Terrain Scan Density 10 Armor Coverage 225 Evasion (%) 55 Recoil Reduction 3 Item Schematics ----------------- None Robot Schematics ------------------ None Fabricated ------------ Nothing Repaired ---------- Nothing Alien Tech Used ----------------- None Achievements -------------- I Think I Know What's Going On Challenges ------------ None Game ------ Seed WarpInsulationShovel Manual? 0 Play Time 00:51:34 Cumulative 155.4 hours Start 2025.06.07 @ 23:22:44 End 2025.06.08 @ 01:02:24 Sessions 1 Manual Loads 0 Difficulty Rogue Special Mode None Game No. 82 Rogue 82 Adventurer 0 Explorer 0 Win Type - Total 4 Types 3/0/1/0/0/0/0/0/0/0 Lore% 54 Gallery% 43 Achievement% 45 Wizard Run 0 Options --------- Layout 0 ASCII 0 Keyboard 1 Movement Vi Keybinds 0 Fullscreen 2 Font 24/Terminus Map View 76x50 Zoom Use 0% Tactical HUD 1 Map Filters NONE Filters NONE Steam 1 RUN: 8656c938-82c0-4f32-a49a-38c8234e05e5